bitfinex/quotes_SOLUSD_20250212
["timestamp","ask_amount","ask_price","bid_price","bid_amount"]
[1739329655401,20.0,194.59,194.47,0.03]
[1739329655606,41.26719376,194.52,194.47,0.03]
[1739329655811,41.26719376,194.54,194.47,41.29719376]
[1739329655992,41.26719376,194.55,194.48,41.26719376]
[1739329656191,41.26719376,194.56,194.48,41.26719376]
[1739329656392,41.26719376,194.56,194.49,41.26719376]
[1739329656696,41.26719376,194.5,194.47,0.03]
[1739329656896,46.40909376,194.48,194.47,0.03]
[1739329657211,5.1419,194.48,194.47,0.03]
[1739329657527,46.40909376,194.48,194.47,0.03]
[1739329657717,5.1419,194.48,194.47,0.03]
[1739329658012,41.26719376,194.44,194.43,25.12927504]
[1739329658402,41.26719376,194.44,194.43,7.504e-05]
[1739329659003,5.1408,194.52,194.43,7.504e-05]
[1739329659211,6.1408,194.52,194.43,7.504e-05]
[1739329659421,41.26719376,194.48,194.43,7.504e-05]
[1739329659634,46.40799376,194.52,194.45,41.26719376]
[1739329660004,41.26719376,194.53,194.46,41.26719376]
[1739329660311,41.26719376,194.52,194.45,41.26719376]
[1739329660691,46.40789376,194.53,194.46,41.26719376]
[1739329660922,41.26719376,194.51,194.44,42.81429376]
[1739329661120,16.82979,194.56,194.44,42.81429376]
[1739329661121,20.0,194.53,194.44,1.5471]
[1739329661292,41.26719376,194.45,194.43,7.504e-05]
[1739329661497,30.12549,194.49,194.43,7.504e-05]
[1739329661799,41.26719376,194.44,194.43,7.504e-05]
[1739329662620,41.26719376,194.46,194.43,7.504e-05]
[1739329663133,0.12549,194.52,194.43,7.504e-05]
[1739329663134,41.26719376,194.44,194.43,7.504e-05]
[1739329664420,71.39268376,194.44,194.43,7.504e-05]
[1739329664719,72.39268376,194.44,194.43,7.504e-05]
[1739329664895,76.02128376,194.44,194.43,7.504e-05]
[1739329665295,45.89579376,194.44,194.43,7.504e-05]
[1739329665517,41.26719376,194.45,194.43,7.504e-05]
[1739329665707,41.26719376,194.44,194.43,7.504e-05]
[1739329666510,41.26719376,194.46,194.43,7.504e-05]
[1739329666696,41.26719376,194.45,194.43,7.504e-05]
[1739329666904,41.26719376,194.44,194.43,7.504e-05]
[1739329667106,41.26719376,194.47,194.43,7.504e-05]
[1739329667422,24.1291,194.56,194.43,7.504e-05]
[1739329667423,45.89479376,194.49,194.43,7.504e-05]
[1739329667620,41.26719376,194.48,194.43,7.504e-05]
[1739329668029,41.26719376,194.44,194.43,7.504e-05]
[1739329668321,30.0,194.5,194.43,7.504e-05]
[1739329668503,41.26719376,194.46,194.43,7.504e-05]
[1739329669226,41.26719376,194.47,194.43,7.504e-05]
[1739329669627,41.26719376,194.44,194.43,7.504e-05]
[1739329670009,41.26719376,194.46,194.43,7.504e-05]
[1739329670213,4.6279,194.48,194.36,41.26719376]
[1739329670214,41.26719376,194.44,194.36,41.26719376]
[1739329670534,41.26719376,194.45,194.37,41.26719376]
[1739329670700,41.26719376,194.5,194.4,41.26719376]
[1739329670701,41.26719376,194.47,194.4,41.26719376]
[1739329670903,30.0,194.53,194.36,5.145]
[1739329671104,0.25098,194.5,194.32,12.8653]
[1739329671322,41.26719376,194.44,194.37,41.26719376]
[1739329671727,41.26719376,194.43,194.36,41.26719376]
[1739329672703,41.33019376,194.46,194.39,41.26719376]
[1739329673034,41.33019376,194.46,194.32,18.55774853]
[1739329673035,0.063,194.46,194.4,41.26719376]
[1739329673333,41.26719376,194.43,194.35,41.26719376]
[1739329673512,41.26719376,194.41,194.34,41.26719376]
[1739329673699,41.26719376,194.41,194.31,6.6305]
[1739329673899,41.26719376,194.4,194.32,41.26719376]
[1739329674317,41.26719376,194.4,194.33,41.26719376]
[1739329674734,45.89679376,194.4,194.32,41.26719376]
[1739329674921,41.26719376,194.41,194.34,41.26719376]
[1739329675228,41.26719376,194.38,194.31,47.89769376]
[1739329675732,30.0,194.37,194.27,1.6049]
[1739329675913,40.76719376,194.33,194.27,1.6049]
[1739329676115,0.25098,194.38,194.27,1.6049]
[1739329676116,41.26719376,194.34,194.27,42.87209376]
[1739329676305,41.26719376,194.37,194.29,41.26719376]
[1739329676504,45.89759376,194.37,194.3,41.26719376]
[1739329676709,45.89759376,194.37,194.29,41.26719376]
[1739329677128,45.89759376,194.37,194.3,41.26719376]
[1739329677129,41.26719376,194.37,194.3,41.26719376]
[1739329677329,3.67665728,194.36,194.29,41.26719376]
[1739329677629,3.67665728,194.36,194.3,41.26719376]
[1739329678127,3.67665728,194.36,194.33,41.26719376]
[1739329678709,3.67665728,194.36,194.35,41.26719376]
[1739329679228,3.67665728,194.39,194.35,41.26719376]
[1739329679809,3.67665728,194.39,194.34,41.26719376]
[1739329680627,3.67665728,194.39,194.35,41.26719376]
[1739329680939,41.26719376,194.37,194.3,41.26719376]
[1739329681124,41.26719376,194.35,194.28,41.26719376]
[1739329681327,30.0,194.38,194.27,1.6049]
[1739329681521,0.25098,194.38,194.27,1.6049]
[1739329681720,3.67665728,194.38,194.27,1.6049]
[1739329681918,3.67665728,194.38,194.28,14.41184853]
[1739329682127,3.67665728,194.38,194.27,7.7521]
[1739329682414,3.67665728,194.38,194.27,19.6207]
[1739329682929,41.26719376,194.34,194.27,42.87209376]
[1739329683131,41.26719376,194.31,194.27,1.6049]
[1739329683335,41.26719376,194.32,194.27,1.6049]
[1739329683522,3.67665728,194.37,194.27,6.7523]
[1739329684317,3.67665728,194.37,194.27,1.6049]
[1739329684531,4.6305,194.36,194.27,1.6049]
[1739329684727,45.89769376,194.36,194.29,41.26719376]
[1739329685131,41.26719376,194.35,194.28,41.26719376]
[1739329685327,44.94385104,194.35,194.28,41.26719376]
[1739329685538,3.67665728,194.35,194.29,41.26719376]
[1739329685743,41.26719376,194.33,194.27,1.6049]
[1739329686047,41.26719376,194.31,194.27,1.6049]
[1739329686241,3.67665728,194.35,194.27,1.6049]
[1739329686242,41.26719376,194.33,194.27,1.6049]
[1739329686449,44.94385104,194.35,194.28,41.26719376]
[1739329686645,3.67665728,194.3,194.28,41.26719376]
[1739329686855,3.67665728,194.3,194.27,1.6049]
[1739329687142,49.57595104,194.3,194.27,1.6049]
[1739329687347,41.26719376,194.29,194.27,1.6049]
[1739329687555,49.57595104,194.3,194.27,1.6049]
[1739329687745,8.30865728,194.3,194.27,1.6049]
[1739329687925,3.67665728,194.3,194.27,1.6049]
[1739329688128,49.57585104,194.3,194.27,1.6049]
[1739329688629,3.67665728,194.29,194.27,1.6049]
[1739329688934,8.30885728,194.29,194.27,1.6049]
[1739329689336,3.67665728,194.29,194.27,1.6049]
[1739329689649,8.30885728,194.29,194.27,1.6049]
[1739329689953,3.67665728,194.28,194.27,1.6049]
[1739329690249,3.67665728,194.28,194.27,27.0940485]
[1739329690754,3.67665728,194.28,194.27,1.6049]
[1739329692056,30.1211485,194.3,194.27,1.6049]
[1739329692762,3.67665728,194.31,194.27,1.6049]
[1739329692763,8.30845728,194.31,194.27,1.6049]
[1739329692961,33.79760578,194.31,194.27,1.6049]
[1739329693132,25.4891485,194.28,194.26,6.6305]
[1739329693453,25.4891485,194.29,194.26,6.6305]
[1739329693650,3.67665728,194.3,194.26,6.6305]
[1739329693947,29.16580578,194.3,194.26,6.6305]
[1739329694153,3.67665728,194.3,194.26,6.6305]
[1739329694325,25.4891485,194.28,194.26,6.6305]
[1739329694528,25.4891485,194.29,194.26,6.6305]
[1739329694748,25.4891485,194.28,194.26,6.6305]
[1739329695261,3.67665728,194.29,194.26,6.6305]
[1739329695749,29.16580578,194.29,194.22,27.0035485]
[1739329695947,25.4891485,194.27,194.22,1.5144]
[1739329696368,25.4891485,194.28,194.22,27.0035485]
[1739329697242,25.4891485,194.25,194.18,161.4891485]
[1739329697448,45.37780578,194.3,194.2,25.4891485]
[1739329697449,29.16580578,194.27,194.2,25.4891485]
[1739329697641,25.4891485,194.25,194.19,25.4891485]
[1739329697838,3.67665728,194.27,194.23,25.4891485]
[1739329698245,3.67665728,194.27,194.22,8.1756]
[1739329698436,3.67665728,194.27,194.25,25.4891485]
[1739329698636,3.67665728,194.27,194.24,25.4891485]
[1739329698938,3.67665728,194.27,194.22,8.1756]
[1739329699133,29.16580578,194.27,194.22,8.1756]
[1739329699339,25.4891485,194.28,194.22,8.1756]
[1739329699641,25.4891485,194.27,194.22,8.1756]
[1739329700076,25.4891485,194.28,194.22,8.1756]
[1739329700249,8.30855728,194.31,194.24,25.4891485]
[1739329700250,29.16580578,194.31,194.24,25.4891485]
[1739329700434,25.4891485,194.31,194.24,25.4891485]
[1739329700758,25.4891485,194.32,194.25,25.4891485]
[1739329700946,25.4891485,194.31,194.24,25.4891485]
[1739329701354,25.4891485,194.3,194.23,25.4891485]
[1739329701535,30.0,194.37,194.24,25.4891485]
[1739329701536,25.4891485,194.31,194.24,25.4891485]
[1739329701737,30.1208485,194.32,194.25,25.4891485]
[1739329701932,0.063,194.39,194.25,1.0]
[1739329702138,0.063,194.39,194.33,25.4891485]
[1739329702559,25.5521485,194.39,194.32,25.4891485]
[1739329702939,0.063,194.39,194.33,25.4891485]
[1739329703141,0.063,194.39,194.35,25.4891485]
[1739329703448,0.063,194.39,194.37,25.4891485]
[1739329703959,0.063,194.39,194.38,32.1468485]
[1739329704267,0.063,194.39,194.38,6.6577]
[1739329704935,0.063,194.39,194.38,32.1468485]
[1739329705134,0.063,194.46,194.38,32.1468485]
[1739329705357,0.063,194.46,194.44,25.4891485]
[1739329705673,0.063,194.46,194.45,25.4891485]
[1739329706775,0.063,194.53,194.51,32.1468485]
[1739329706949,0.063,194.53,194.51,6.6577]
[1739329707553,4.6895,194.53,194.46,6.6577]
[1739329707775,25.4891485,194.48,194.46,6.6577]
[1739329708081,25.4891485,194.47,194.41,6.6577]
[1739329708284,25.4891485,194.45,194.41,6.6577]
[1739329708855,25.4891485,194.48,194.41,32.1468485]
[1739329709549,25.4891485,194.51,194.44,25.4891485]
[1739329709755,46.02105323,194.53,194.46,41.33155323]
[1739329710274,0.063,194.53,194.42,2.0]
[1739329710456,0.063,194.53,194.43,14.41184853]
[1739329710653,0.063,194.53,194.45,1.5179]
[1739329710853,0.063,194.53,194.51,41.33155323]
[1739329711274,0.063,194.53,194.52,41.33155323]
[1739329711978,0.063,194.53,194.52,47.53375323]
[1739329712376,0.063,194.59,194.52,60.94560176]
[1739329712568,0.063,194.59,194.58,41.33155323]
[1739329712771,0.063,194.59,194.57,41.33155323]
[1739329712972,0.063,194.59,194.54,41.33155323]
[1739329713288,0.063,194.59,194.52,6.2022]
[1739329713289,41.33155323,194.56,194.52,6.2022]
[1739329713883,45.95775323,194.54,194.47,41.33155323]
[1739329714181,41.33155323,194.53,194.46,47.53375323]
[1739329714981,41.33155323,194.52,194.46,6.2022]
[1739329715185,41.33155323,194.51,194.46,6.2022]
[1739329715793,41.33155323,194.52,194.46,6.2022]
[1739329715992,45.95805323,194.53,194.46,47.53375323]
[1739329716367,57.52435323,194.53,194.46,47.53375323]
[1739329717292,45.95805323,194.53,194.46,47.53375323]
[1739329717597,4.6265,194.53,194.51,41.33155323]
[1739329717771,57.52145323,194.57,194.5,41.33155323]
[1739329718179,4.6255,194.57,194.52,41.33155323]
[1739329718365,4.6255,194.57,194.53,41.33155323]
[1739329718768,4.6255,194.57,194.55,41.33155323]
[1739329718981,0.063,194.57,194.55,41.33155323]
[1739329719186,0.063,194.57,194.56,41.33155323]
[1739329719772,0.063,194.57,194.55,41.33155323]
[1739329720966,0.063,194.57,194.51,41.33155323]
[1739329721275,0.063,194.57,194.52,41.33155323]
[1739329721581,0.063,194.57,194.54,41.33155323]
[1739329721782,0.063,194.57,194.55,41.33155323]
[1739329721973,0.063,194.57,194.56,41.33155323]
[1739329723887,0.063,194.57,194.56,49.41165323]
[1739329724090,0.562,194.57,194.56,49.41165323]
[1739329726373,0.063,194.59,194.57,13.41184853]
[1739329726573,0.063,194.59,194.58,41.33155323]
[1739329727287,0.063,194.59,194.57,41.33155323]
[1739329727489,0.063,194.59,194.52,41.33155323]
[1739329727676,0.063,194.59,194.51,6.5782]
[1739329727877,0.063,194.59,194.5,0.03]
[1739329728086,30.0,194.58,194.5,0.03]
[1739329728488,0.25098,194.57,194.5,0.03]
[1739329728682,20.0,194.57,194.5,0.03]
[1739329728882,23.69969815,194.57,194.5,0.03]
[1739329729092,41.33155323,194.52,194.5,0.03]
[1739329729305,41.33155323,194.55,194.5,0.03]
[1739329729686,30.05561545,194.54,194.5,0.03]
[1739329729995,16.1919,194.54,194.5,0.03]
[1739329730511,25.42941545,194.51,194.5,0.03]
[1739329730685,25.42941545,194.47,194.41,6.5782]
[1739329730877,25.42941545,194.46,194.41,6.5782]
[1739329731072,16.1919,194.54,194.39,26.93131545]
[1739329731073,25.42941545,194.44,194.39,1.5019]
[1739329731404,25.42941545,194.43,194.39,1.5019]
[1739329731589,4.6291,194.42,194.39,1.5019]
[1739329733192,4.6291,194.42,194.36,41.37199815]
[1739329733402,57.57389815,194.42,194.35,47.95019815]
[1739329734401,16.2019,194.42,194.36,41.37199815]
[1739329734576,4.6291,194.42,194.37,41.37199815]
[1739329735101,4.6291,194.42,194.38,41.37199815]
[1739329735288,4.6291,194.42,194.37,41.37199815]
[1739329735474,46.00109815,194.42,194.35,41.37199815]
[1739329735674,4.6291,194.42,194.36,41.37199815]
[1739329735896,4.6291,194.42,194.38,41.37199815]
[1739329736100,4.6282,194.46,194.41,41.37199815]
[1739329736890,4.6282,194.46,194.42,41.37199815]
[1739329737094,4.6282,194.46,194.43,41.37199815]
[1739329738011,41.37199815,194.49,194.43,41.37199815]
[1739329738185,45.99969815,194.48,194.41,41.37199815]
[1739329738705,4.6277,194.48,194.42,41.37199815]
[1739329738903,4.6277,194.48,194.43,41.37199815]
[1739329739506,41.37199815,194.49,194.43,41.37199815]
[1739329740276,41.37199815,194.5,194.43,41.37199815]
[1739329740909,41.37199815,194.5,194.42,6.16]
[1739329740910,41.37199815,194.5,194.44,41.37199815]
[1739329741077,41.37199815,194.5,194.43,41.37199815]
[1739329741788,41.37199815,194.52,194.46,41.37199815]
[1739329741988,4.6267,194.52,194.47,41.37199815]
[1739329742300,4.6267,194.52,194.48,41.37199815]
[1739329742682,4.6267,194.52,194.47,41.37199815]
[1739329743004,4.6267,194.52,194.48,41.37199815]
[1739329743390,41.37199815,194.51,194.45,42.98699815]
[1739329743590,45.99869815,194.52,194.46,41.37199815]
[1739329743909,45.99869815,194.52,194.45,1.615]
[1739329743910,4.6267,194.52,194.47,41.37199815]
[1739329744104,4.6267,194.52,194.48,41.37199815]
[1739329745104,0.063,194.57,194.47,0.03]
[1739329745403,0.063,194.57,194.56,41.37199815]
[1739329745788,0.063,194.57,194.5,47.51329815]
[1739329746096,0.063,194.57,194.52,13.41184853]
[1739329746296,0.063,194.57,194.56,41.37199815]
[1739329747084,0.063,194.57,194.56,56.39884668]
[1739329747289,0.063,194.57,194.56,57.39884668]
[1739329747491,0.063,194.59,194.57,13.41184853]
[1739329747793,0.063,194.59,194.56,63.55884668]
[1739329747794,0.063,194.64,194.62,13.41184853]
[1739329748000,0.063,194.64,194.63,0.7703333]
[1739329748194,0.063,194.64,194.63,55.55417998]
[1739329748503,0.063,194.64,194.63,54.78384668]
[1739329748705,0.063,194.64,194.63,41.37199815]
[1739329748910,0.063,194.64,194.58,41.37199815]
[1739329749113,41.37199815,194.61,194.56,7.775]
[1739329749286,0.063,194.64,194.56,7.775]
[1739329750416,41.37199815,194.6,194.53,41.37199815]
[1739329750710,41.37199815,194.58,194.51,47.53199815]
[1739329750911,41.37199815,194.54,194.47,41.40199815]
[1739329751087,41.37199815,194.51,194.47,0.03]
[1739329751293,42.37199815,194.6,194.47,0.03]
[1739329751517,0.25098,194.59,194.47,0.03]
[1739329751811,41.37199815,194.5,194.47,0.03]
[1739329752002,41.37199815,194.49,194.47,0.03]
[1739329752193,41.37199815,194.52,194.47,0.03]
[1739329752609,41.37199815,194.53,194.47,0.03]
[1739329752813,41.37199815,194.52,194.47,0.03]
[1739329752996,41.37199815,194.55,194.47,41.40199815]
[1739329753311,41.37199815,194.55,194.48,41.37199815]
[1739329753514,45.99729815,194.58,194.51,41.37199815]
[1739329753691,41.37199815,194.57,194.5,41.37199815]
[1739329753900,4.6258,194.56,194.5,41.37199815]
[1739329754295,45.99779815,194.56,194.49,41.37199815]
[1739329754498,41.37199815,194.52,194.47,0.03]
[1739329755005,41.37199815,194.54,194.47,41.40199815]
[1739329755317,41.37199815,194.55,194.48,41.37199815]
[1739329755615,4.6258,194.56,194.52,41.37199815]
[1739329755788,4.6255,194.58,194.52,41.37199815]
[1739329755991,4.6255,194.58,194.53,41.37199815]
[1739329756193,4.6255,194.58,194.52,41.37199815]
[1739329756706,4.6255,194.58,194.53,41.37199815]
[1739329756907,4.6255,194.58,194.55,41.37199815]
[1739329757698,16.1863,194.61,194.55,41.37199815]
[1739329757904,41.37199815,194.58,194.51,47.73369815]
[1739329758219,0.063,194.54,194.48,41.37199815]
[1739329758399,0.063,194.54,194.49,41.37199815]
[1739329758802,0.063,194.54,194.5,41.37199815]
[1739329759622,0.063,194.54,194.51,41.37199815]
[1739329760315,0.063,194.54,194.5,41.37199815]
[1739329760922,0.063,194.54,194.49,41.37199815]
[1739329761621,0.063,194.54,194.47,0.03]
[1739329761622,0.063,194.54,194.5,41.37199815]
[1739329762630,41.37199815,194.52,194.47,0.03]
[1739329763020,41.43499815,194.54,194.48,41.37199815]
[1739329763213,0.063,194.54,194.52,41.37199815]
[1739329763731,0.063,194.54,194.52,25.41882315]
[1739329764030,0.063,194.54,194.51,25.41882315]
[1739329764207,0.063,194.54,194.5,25.41882315]
[1739329764408,25.48182315,194.54,194.47,25.44882315]
[1739329764825,0.063,194.54,194.49,25.41882315]
[1739329765518,0.063,194.54,194.47,0.03]
[1739329765519,25.41882315,194.53,194.47,0.03]
[1739329765826,25.41882315,194.52,194.47,0.03]
[1739329766028,25.41882315,194.53,194.47,0.03]
[1739329766223,25.41882315,194.53,194.47,25.44882315]
[1739329767133,0.063,194.54,194.49,25.41882315]
[1739329767308,0.063,194.54,194.5,25.41882315]
[1739329767508,0.063,194.54,194.49,25.41882315]
[1739329768422,0.063,194.54,194.48,25.41882315]
[1739329769232,0.063,194.54,194.49,25.41882315]
[1739329769810,0.063,194.54,194.48,25.41882315]
[1739329770107,25.41882315,194.5,194.47,0.03]
[1739329770410,25.41882315,194.51,194.47,0.03]
[1739329770721,25.48182315,194.54,194.47,25.44882315]
[1739329770911,25.41882315,194.53,194.47,0.03]
[1739329771117,25.41882315,194.51,194.47,0.03]
[1739329771306,16.1936,194.52,194.47,0.03]
[1739329771714,25.41882315,194.51,194.47,0.03]
[1739329772419,41.61242315,194.52,194.47,0.03]
[1739329773931,16.1936,194.52,194.47,0.03]
[1739329774343,41.61242315,194.52,194.47,0.03]
[1739329774553,25.41882315,194.51,194.47,0.03]
[1739329774925,41.61242315,194.52,194.47,0.03]
[1739329775125,4.6267,194.52,194.49,25.41882315]
[1739329775627,4.6267,194.52,194.5,25.41882315]
[1739329775934,0.063,194.54,194.51,25.41882315]
[1739329776117,0.063,194.54,194.53,25.41882315]
[1739329776321,0.063,194.54,194.53,31.78052315]
[1739329776515,0.063,194.54,194.53,6.3617]
[1739329776746,0.063,194.54,194.5,25.41882315]
[1739329777422,0.063,194.54,194.51,25.41882315]
[1739329778254,0.063,194.54,194.53,25.41882315]
[1739329778748,0.063,194.54,194.52,25.41882315]
[1739329779441,0.063,194.54,194.53,25.41882315]
[1739329780320,0.063,194.54,194.53,26.98012315]
[1739329781243,0.063,194.54,194.53,1.5613]
[1739329781464,0.063,194.54,194.5,25.41882315]
[1739329781835,0.063,194.54,194.51,25.41882315]
[1739329782452,25.41882315,194.53,194.48,7.923]
[1739329782949,0.063,194.54,194.48,33.34182315]
[1739329783155,25.48182315,194.54,194.48,7.923]
[1739329783475,25.41882315,194.5,194.47,0.03]
[1739329784145,4.6274,194.49,194.47,0.03]
[1739329786140,25.41882315,194.48,194.47,0.03]
[1739329786755,30.04652315,194.48,194.47,0.03]
[1739329787059,4.6277,194.48,194.47,0.03]
[1739329787543,4.6267,194.52,194.47,25.44882315]
[1739329787860,4.6267,194.52,194.48,25.41882315]
[1739329788036,4.6267,194.52,194.47,25.44882315]
[1739329788240,41.61242315,194.52,194.47,0.03]
[1739329788641,16.1936,194.52,194.47,0.03]
[1739329789270,41.61242315,194.52,194.47,0.03]
[1739329789646,25.41882315,194.53,194.47,0.03]
[1739329789847,25.48182315,194.54,194.47,25.44882315]
[1739329790046,0.063,194.54,194.49,25.41882315]
[1739329790646,0.063,194.54,194.53,25.41882315]
[1739329792864,0.063,194.59,194.53,25.41882315]
[1739329793071,0.063,194.59,194.58,25.41882315]
[1739329793458,0.063,194.59,194.58,31.65242315]
[1739329793650,0.063,194.59,194.58,33.27292315]
[1739329794547,0.063,194.59,194.58,46.68477168]
[1739329794749,0.063,194.59,194.58,72.10359483]
[1739329794951,0.063,194.64,194.63,25.41882315]
[1739329797680,25.48182315,194.64,194.58,33.27292315]
[1739329797984,25.41882315,194.63,194.57,25.41882315]
[1739329798189,25.41882315,194.62,194.56,25.41882315]
[1739329799160,25.41882315,194.61,194.55,25.41882315]
[1739329799996,4.6248,194.6,194.55,25.41882315]
[1739329800286,4.6248,194.6,194.58,25.41882315]
[1739329800590,25.48182315,194.64,194.58,25.41882315]
[1739329800791,4.687,194.64,194.61,25.41882315]
[1739329801099,4.687,194.64,194.63,25.41882315]
[1739329801100,0.063,194.64,194.63,25.41882315]
[1739329801895,0.063,194.64,194.63,30.55672315]
[1739329802064,0.063,194.64,194.63,51.56897168]
[1739329803279,4.6847,194.74,194.63,33.01922315]
[1739329803600,4.6847,194.74,194.69,41.23051003]
[1739329803897,0.063,194.74,194.7,41.23051003]
[1739329804073,0.063,194.74,194.71,41.23051003]
[1739329804275,0.063,194.74,194.69,41.23051003]
[1739329804874,0.063,194.74,194.71,41.23051003]
[1739329805080,0.063,194.74,194.72,41.23051003]
[1739329805490,0.063,194.74,194.73,41.23051003]
[1739329805794,0.063,194.74,194.72,41.23051003]
[1739329805991,0.063,194.74,194.73,41.23051003]
[1739329806201,0.063,194.74,194.71,41.23051003]
[1739329807388,0.063,194.74,194.65,18.54924853]
[1739329807389,0.063,194.74,194.73,47.27091003]
[1739329807598,0.063,194.74,194.73,60.68275856]
[1739329807885,0.063,194.74,194.73,47.27091003]
[1739329808091,0.063,194.74,194.73,6.0404]
[1739329808588,0.063,194.74,194.73,47.27091003]
[1739329808780,0.063,194.74,194.72,41.23051003]
[1739329809094,0.063,194.74,194.7,41.23051003]
[1739329809281,0.063,194.74,194.68,47.27091003]
[1739329809596,0.063,194.74,194.72,41.23051003]
[1739329809789,0.063,194.74,194.71,41.23051003]
[1739329809991,0.063,194.74,194.68,6.0404]
[1739329810385,0.063,194.74,194.7,41.23051003]
[1739329812009,0.063,194.74,194.71,41.23051003]
[1739329812801,0.063,194.74,194.73,41.23051003]
[1739329814183,0.063,194.74,194.71,41.23051003]
[1739329814382,0.063,194.74,194.72,41.23051003]
[1739329814583,0.063,194.74,194.73,41.23051003]
[1739329815001,0.063,194.74,194.73,56.16575856]
[1739329815592,0.063,194.74,194.68,6.0404]
[1739329815914,0.063,194.74,194.71,41.23051003]
[1739329816101,0.063,194.74,194.73,41.23051003]
[1739329816882,0.063,194.74,194.73,54.64235856]
[1739329817299,0.063,194.74,194.73,41.23051003]
[1739329818481,0.063,194.74,194.72,41.23051003]
[1739329818708,0.063,194.74,194.68,47.27091003]
[1739329818914,41.29351003,194.74,194.68,47.27091003]
[1739329819294,0.063,194.74,194.69,41.23051003]
[1739329819494,0.063,194.74,194.7,41.23051003]
[1739329819812,0.063,194.74,194.73,41.23051003]
[1739329820205,0.063,194.74,194.72,41.23051003]
[1739329820721,0.063,194.74,194.7,41.23051003]
[1739329821129,0.063,194.74,194.69,41.23051003]
[1739329821519,41.29351003,194.74,194.68,47.27091003]
[1739329821727,4.6217,194.73,194.68,6.0404]
[1739329822197,0.063,194.74,194.69,41.23051003]
[1739329822403,0.063,194.74,194.72,41.23051003]
[1739329822924,4.6845,194.74,194.68,47.27091003]
[1739329823127,45.91501003,194.74,194.68,47.27091003]
[1739329823715,30.0598053,194.74,194.68,31.4157053]
[1739329823920,4.6845,194.74,194.69,25.3753053]
[1739329824112,0.063,194.74,194.71,25.3753053]
[1739329824305,0.063,194.74,194.73,25.3753053]
[1739329825101,0.063,194.74,194.71,25.3753053]
[1739329825726,0.063,194.74,194.69,25.3753053]
[1739329826323,0.063,194.74,194.71,25.3753053]
[1739329826704,0.063,194.74,194.69,25.3753053]
[1739329827320,0.063,194.74,194.7,25.3753053]
[1739329827922,0.063,194.74,194.73,25.3753053]
[1739329828303,0.063,194.74,194.72,25.3753053]
[1739329828632,0.063,194.74,194.73,25.3753053]
[1739329829330,0.063,194.74,194.73,38.78715383]
[1739329830933,0.063,194.74,194.73,25.3753053]
[1739329831436,0.063,194.74,194.73,38.78715383]
[1739329832309,0.063,194.74,194.72,25.3753053]
[1739329832528,0.063,194.74,194.73,25.3753053]
[1739329832915,0.063,194.74,194.73,38.78715383]
[1739329833234,0.063,194.74,194.73,25.3753053]
[1739329833435,0.063,194.74,194.71,25.3753053]
[1739329833621,0.063,194.74,194.68,31.4157053]
[1739329834244,0.063,194.74,194.7,25.3753053]
[1739329834914,0.063,194.74,194.73,25.3753053]
[1739329835937,0.063,194.74,194.73,43.92245383]
[1739329836912,0.063,194.74,194.73,38.78715383]
[1739329837617,0.063,194.74,194.73,25.3753053]
[1739329838143,0.063,194.74,194.72,25.3753053]
[1739329839453,0.063,194.74,194.73,25.3753053]
[1739329840120,0.063,194.74,194.69,25.3753053]
[1739329840333,0.063,194.74,194.7,25.3753053]
[1739329840536,0.063,194.74,194.69,25.3753053]
[1739329841052,0.063,194.74,194.7,25.3753053]
[1739329841823,0.063,194.74,194.69,25.3753053]
[1739329842224,0.063,194.74,194.71,25.3753053]
[1739329842952,0.063,194.74,194.7,25.3753053]
[1739329843748,0.063,194.74,194.69,25.3753053]
[1739329844852,0.063,194.74,194.64,6.4492]
[1739329845149,25.3753053,194.69,194.64,0.03]
[1739329845354,20.0,194.73,194.67,25.3753053]
[1739329845529,0.063,194.74,194.69,25.3753053]
[1739329845921,25.3753053,194.72,194.66,25.3753053]
[1739329846253,25.3753053,194.71,194.65,25.3753053]
[1739329847147,4.6224,194.7,194.65,25.3753053]
[1739329847324,4.6224,194.7,194.66,25.3753053]
[1739329847651,4.6224,194.7,194.65,25.3753053]
[1739329847947,4.6224,194.7,194.64,25.4053053]